Cogmind - Beta 11.1 @@@ ROGUE MODE // 2022.09.27 @ 03:03:34 Player: Zirov Result: Destroyed by G-47 Trooper with Particle Gun Performance ------------- Evolutions (1) 500 Regions Visited (5) 1000 Robots Destroyed (27) 135 Value Destroyed (405) 405 Prototype IDs (3) 60 Alien Tech Used (0) 0 Bonus (310) 310 TOTAL SCORE: 2410 Bonus ------- High Alert Combat Kills 10 Aligned with FarCom 300 Cogmind --------- Core Integrity 0/400 Matter 300/300 Energy 99/100 System Corruption 0% Temperature Cool (9) Movement Core (50) Location -8/Mines Parts ------- > --- POWER (1) -------- (None) > --- PROPULSION (3) --- (None) > --- UTILITY (3) ------ Advanced Visual Processing Unit > --- WEAPON (2) ------- (None) > --- INVENTORY (5) ---- Light Ion Engine Medium Storage Unit Advanced Visual Processing Unit Hacking Suite Field Lobotomy Kit (5) Peak State ------------ > --- POWER ------------ Ion Engine > --- PROPULSION ------- Aluminum Leg Aluminum Leg Aluminum Leg > --- UTILITY ---------- Medium Storage Unit Advanced Visual Processing Unit Seismic Detector > --- WEAPON ----------- Light Assault Rifle Field Lobotomy Kit > --- INVENTORY -------- Light Ion Engine Heat Sink Medium Matter Pod Advanced Visual Processing Unit Hacking Suite Small Laser Grenade Launcher [Rating: 21] Favorites ----------- Power Ion Engine Engine Ion Engine Propulsion Aluminum Leg Leg Aluminum Leg Utility Seismic Detector Device Seismic Detector Storage Medium Storage Unit Processor Advanced Visual Processing Unit Weapon Light Assault Rifle Energy Gun Small Laser Ballistic Gun Light Assault Rifle Launcher Grenade Launcher Special Weapon Field Lobotomy Kit Build | -11 -10 -9 -9 -9 -8 ------- Run | Scr Mat Mat Min Exi Min Slots Evolved 2 | . . 2 . . . Power . | . . . . . . Propulsion 1 | . . 1 . . . Utility 1 | . . 1 . . . Weapon . | . . . . . . Parts Attached 20 | 6 3 8 1 2 . Power 2 | 1 . 1 . . . Engine 2 | 1 . 1 . . . Core . | . . . . . . Reactor . | . . . . . . Propulsion 4 | 2 . 1 1 . . Treads . | . . . . . . Leg 4 | 2 . 1 1 . . Wheel . | . . . . . . Hover . | . . . . . . Flight . | . . . . . . Utility 4 | 1 1 2 . . . Device 1 | . 1 . . . . Storage 2 | 1 . 1 . . . Processor 1 | . . 1 . . . Hackware . | . . . . . . Protection . | . . . . . . Artifact . | . . . . . . Weapon 10 | 2 2 4 . 2 . Energy Gun 3 | 1 . 1 . 1 . Energy Cannon . | . . . . . . Ballistic Gun 3 | 1 1 1 . . . Ballistic Cannon . | . . . . . . Launcher 3 | . 1 2 . . . Special Weapon 1 | . . . . 1 . Impact Weapon . | . . . . . . Slashing Weapon . | . . . . . . Piercing Weapon . | . . . . . . Special Melee Weapon . | . . . . . . Unidentified Prototypes 1 | . . . . 1 . Parts Lost 10 | . . 3 . 7 . Power 1 | . . . . 1 . Propulsion 4 | . . 1 . 3 . Utility 1 | . . . . 1 . Weapon 4 | . . 2 . 2 . Highest Loss Streak 7 | . . 3 . 7 . To Critical Strikes . | . . . . . . Average Slot Usage (%) 91 | . 91 95 90 87 11 Engine 11 | . 14 11 11 9 . Leg 28 | . 28 30 24 28 . Device 9 | . 6 11 11 8 . Storage 11 | . 14 11 11 9 . Processor 8 | . . 10 11 11 11 Energy Gun 4 | . 2 1 11 8 . Ballistic Gun 15 | . 18 18 11 9 . Launcher 2 | . 8 1 . . . Naked Turns . | . . . . . . Heaviest Build 25 | 13 16 20 18 25 . Greatest Support 30 | 20 20 30 30 30 3 Greatest Overweight (x) 3 | . . . . 3 . Average Overweight (x) . | . . . . . . Largest Inventory Capacity 10 | 8 8 10 10 10 5 Average Capacity 8 | 6 8 8 10 9 5 Most Carried 8 | 1 7 8 6 7 5 Average Carried 5 | . 3 6 5 6 5 Final Capacity 10 | 8 8 10 10 5 5 Final Carried 7 | 1 7 5 6 5 5 Class Distribution -------------------- 51% | Mutant 48% | Scavenger-Mutant Dominant Class ---------------- Mutant | -10/Materials Mutant | -9/Materials Scavenger-Mutant | -9/Mines Scavenger-Mutant | -9/Exiles Mutant | -8/Mines Resources | -11 -10 -9 -9 -9 -8 ----------- Run | Scr Mat Mat Min Exi Min Matter Collected 740 | 226 246 257 11 . . Remotely . | . . . . . . Salvage Created 568 | . 343 225 . . . Parts 42 | . 22 20 . . . Haulers Intercepted 2 | . 1 1 . . . Recyclers Shooed . | . . . . . . Parts Field Recycled . | . . . . . . Retrieved Matter . | . . . . . . Parts Self-Destructed . | . . . . . . Prevented . | . . . . . . Kills | -11 -10 -9 -9 -9 -8 ------- Run | Scr Mat Mat Min Exi Min Combat Hostiles Destroyed 18 | . 10 8 . . . Guns 10 | . 5 5 . . . AOE 8 | . 5 3 . . . Classes Destroyed 8 | . 6 2 . . . Builder 2 | . 1 1 . . . Hauler 2 | . 1 1 . . . Recycler 1 | . 1 . . . . Operator 3 | . 2 1 . . . Watcher 1 | . . 1 . . . Swarmer 13 | . 6 7 . . . Grunt 4 | . 4 . . . . Sentry 1 | . . 1 . . . Best Kill Streak 7 | . 7 6 . . . Combat Bots Only 4 | . 3 4 . . . Max Kills in Single Turn 3 | . 3 2 . . . Gunslinging 1 | . . 1 . . . Exploded 3 | . 3 2 . . . Melee . | . . . . . . Uniques/NPCs Destroyed . | . . . . . . Combat | -11 -10 -9 -9 -9 -8 -------- Run | Scr Mat Mat Min Exi Min Damage Taken 1306 | . 168 502 . 509 127 Core 417 | . 16 128 . 146 127 Absorbed by Shields . | . . . . . . Core Remaining (%) 96 | 100 93 . . . . Volleys Fired 53 | . 24 26 . 3 . Largest 2 | . 2 2 . 2 . Hottest 60 | . 50 60 . 60 . Shots Fired 98 | . 43 49 . 6 . Gun 87 | . 36 45 . 6 . Cannon . | . . . . . . Launcher 11 | . 7 4 . . . Special . | . . . . . . Kinetic 80 | . 36 41 . 3 . Thermal 7 | . . 4 . 3 . Explosive 11 | . 7 4 . . . Electromagnetic . | . . . . . . Robot Hit Streak 10 | . 10 8 . 3 . Robot Miss Streak 6 | . 3 5 . 6 . Penetration Max . | . . . . . . Secondary Targets 3 | . . 3 . . . Max Gunslinging Chain 1 | . . 1 . . . Shots Hit Robots 56 | . 28 25 . 3 . Core Hits 40 | . 20 20 . . . Critical Kills . | . . . . . . Critical Parts Destroyed . | . . . . . . Critical Strikes . | . . . . . . Melee Attacks . | . . . . . . Impact . | . . . . . . Slashing . | . . . . . . Piercing . | . . . . . . Sneak Attacks . | . . . . . . Combat Hostiles . | . . . . . . Follow-up Attacks . | . . . . . . Damage Inflicted 1146 | . 664 455 . 27 . Guns 539 | . 271 241 . 27 . Cannons . | . . . . . . Explosions 607 | . 393 214 . . . Melee . | . . . . . . Ramming . | . . . . . . Kinetic 518 | . 271 231 . 16 . Thermal 21 | . . 10 . 11 . Explosive 607 | . 393 214 . . . Electromagnetic . | . . . . . . Impact . | . . . . . . Slashing . | . . . . . . Piercing . | . . . . . . Highest Corruption . | . . . . . . Average Corruption . | . . . . . . Corruption Purged . | . . . . . . Corruption Blocked . | . . . . . . Overload Shots . | . . . . . . Overflow Damage 23 | . 23 . . . . Projectiles . | . . . . . . Explosions 23 | . 23 . . . . Melee . | . . . . . . Knockbacks . | . . . . . . Impact . | . . . . . . Kinetic . | . . . . . . Secondary . | . . . . . . Self-Inflicted Damage 109 | . 18 91 . . . Shots 5 | . 2 3 . . . Rammed . | . . . . . . Targets Rammed . | . . . . . . Kicked . | . . . . . . Crushed . | . . . . . . Highest Temperature 28 | . 6 14 . 28 . Average Temperature 8 | . 4 7 . 15 . Received Heat Transfer 183 | . 54 63 . 12 54 Siege Activations . | . . . . . . Robots Corrupted . | . . . . . . Combat Hostiles . | . . . . . . Parts Fried . | . . . . . . Impact Corruptions . | . . . . . . Robots Melted . | . . . . . . Combat Hostiles . | . . . . . . Parts Melted . | . . . . . . Heat Transferred 50 | . . 25 . 25 . Parts Sabotaged . | . . . . . . Parts Stolen . | . . . . . . Parts Stripped . | . . . . . . Power Chain Reactions . | . . . . . . Missiles Intercepted . | . . . . . . Alert | -11 -10 -9 -9 -9 -8 ------- Run | Scr Mat Mat Min Exi Min Peak Influence 444 | . 444 344 133 . 15 Initial 187 | . . 187 133 . . Average 206 | . 237 225 133 . 13 Maximum Alert Level 2 | . 2 1 . . . Low Security (%) 47 | 100 41 37 100 . 100 Level 1 48 | . 43 62 . . . Level 2 3 | . 15 . . . . Level 3 . | . . . . . . Level 4 . | . . . . . . Level 5 . | . . . . . . High Security . | . . . . . . Max Security . | . . . . . . Squads Dispatched 4 | . 2 2 . . . Investigation . | . . . . . . Extermination . | . . . . . . Reinforcement 4 | . 2 2 . . . Assault . | . . . . . . Garrison . | . . . . . . Intercept . | . . . . . . Searches Triggered . | . . . . . . Construction Impeded . | . . . . . . Haulers Reinforced . | . . . . . . Active Scanning Responses . | . . . . . . Cargo Convoy Interrupts . | . . . . . . Stealth | -11 -10 -9 -9 -9 -8 --------- Run | Scr Mat Mat Min Exi Min Distress Signals 2 | . 1 1 . . . Communications Jammed . | . . . . . . Distress Signals . | . . . . . . Times Spotted 40 | . 14 15 . 8 3 Peak Tracking Total 6 | . 4 4 . 6 3 Tactical Retreats 3 | . 1 . . 2 . Traps | -11 -10 -9 -9 -9 -8 ------- Run | Scr Mat Mat Min Exi Min Traps Triggered . | . . . . . . Indirectly . | . . . . . . Trap Hack Attempts . | . . . . . . Triggered . | . . . . . . Disarmed . | . . . . . . Reprogrammed . | . . . . . . Reused . | . . . . . . Traps Extracted . | . . . . . . Installed . | . . . . . . Triggered . | . . . . . . Exploded 1 | . . . . 1 . Machines | -11 -10 -9 -9 -9 -8 ---------- Run | Scr Mat Mat Min Exi Min Machines Disabled 1 | . 1 . . . . Max in Single Turn 1 | . 1 . . . . Machines Sabotaged . | . . . . . . Garrisons Compromised . | . . . . . . Overloaded Fab Kills . | . . . . . . Hacking | -11 -10 -9 -9 -9 -8 --------- Run | Scr Mat Mat Min Exi Min Machines Accessed 8 | . . 5 . 3 . Terminals 4 | . . 4 . . . Fabricators . | . . . . . . Repair Stations . | . . . . . . Recycling Units . | . . . . . . Scanalyzers 1 | . . 1 . . . Garrison Access . | . . . . . . Total Hacks 40 | . . 14 . 26 . Successful 33 | . . 7 . 26 . Failed 7 | . . 7 . . . Catastrophic . | . . . . . . Database Lockouts . | . . . . . . Manual 7 | . . 6 . 1 . Terminals 12 | . . 12 . . . Fabricators . | . . . . . . Repair Stations . | . . . . . . Recycling Units . | . . . . . . Scanalyzers 2 | . . 2 . . . Garrison Access . | . . . . . . Terminal Hacks 30 | . . 4 . 26 . Record 26 | . . . . 26 . Prototype ID Bank 1 | . . 1 . . . Branch Access Points 1 | . . 1 . . . Terminal Index 1 | . . 1 . . . Dispatch Records 1 | . . 1 . . . Fabricator Hacks . | . . . . . . Repair Station Hacks . | . . . . . . Recycling Unit Hacks . | . . . . . . Scanalyzer 2 | . . 2 . . . Insert Component 1 | . . 1 . . . Analyze 1 | . . 1 . . . Garrison Access Hacks . | . . . . . . Unauthorized Hacks 1 | . . 1 . . . Terminals 1 | . . 1 . . . Assimilate 1 | . . 1 . . . Fabricators . | . . . . . . Repair Stations . | . . . . . . Recycling Units . | . . . . . . Scanalyzers . | . . . . . . Garrison Access . | . . . . . . Data Cores Recovered 2 | . 1 1 . . . Used . | . . . . . . Hacking Detections 5 | . . 5 . . . Full Trace Events . | . . . . . . Feedback Events . | . . . . . . Feedback Blocked . | . . . . . . Robot Schematics Acquired . | . . . . . . Robots Built . | . . . . . . Authchips . | . . . . . . Time . | . . . . . . Total Robot Build Rating . | . . . . . . Part Schematics Acquired 1 | . . 1 . . . Parts Built . | . . . . . . Authchips . | . . . . . . Time . | . . . . . . Total Part Build Rating . | . . . . . . Parts Repaired . | . . . . . . Time . | . . . . . . Parts Recycled . | . . . . . . Recycled Matter . | . . . . . . Retrieved Matter . | . . . . . . Retrieved Components . | . . . . . . Parts Scanalyzed 1 | . . 1 . . . Part Schematics Acquired 1 | . . 1 . . . Parts Damaged . | . . . . . . Bothacking | -11 -10 -9 -9 -9 -8 ------------ Run | Scr Mat Mat Min Exi Min Used RIF Installer . | . . . . . . Robots Hacked . | . . . . . . Non-combat . | . . . . . . Combat . | . . . . . . Robot Hacks Applied . | . . . . . . Relay Couplers Released . | . . . . . . Fabnet Peak Effective % . | . . . . . . Robots Rewired . | . . . . . . Allies Hacked . | . . . . . . Hacks Repelled . | . . . . . . Allies | -11 -10 -9 -9 -9 -8 -------- Run | Scr Mat Mat Min Exi Min Total Allies . | . . . . . . Largest Group . | . . . . . . Highest-Rated Group . | . . . . . . Highest-Rated Ally . | . . . . . . Total Orders . | . . . . . . Ally Attacks . | . . . . . . Total Damage . | . . . . . . Kills . | . . . . . . Allies Corrupted . | . . . . . . Allies Melted . | . . . . . . Intel | -11 -10 -9 -9 -9 -8 ------- Run | Scr Mat Mat Min Exi Min Robot Analysis Total . | . . . . . . Derelict Logs Recovered . | . . . . . . Drone Launches . | . . . . . . Drone Recoveries . | . . . . . . Exploration | -11 -10 -9 -9 -9 -8 ------------- Run | Scr Mat Mat Min Exi Min Turns Passed 1485 | 60 280 657 100 380 8 Spaces Moved 1029 | 45 152 392 82 343 15 Core 102 | 4 . . . 83 15 Treads . | . . . . . . Legs 927 | 41 152 392 82 260 . Wheels . | . . . . . . Hover . | . . . . . . Flight . | . . . . . . Fastest Speed 50 | 50 120 120 120 50 50 Average Speed 113 | 113 120 120 120 104 50 Slowest Speed 200 | 120 120 120 120 200 50 Overloaded Moves . | . . . . . . Propulsion Burnouts . | . . . . . . Robots Hopped . | . . . . . . Cave-ins Triggered . | . . . . . . Exploration Rate (%) 25 | 3 31 36 14 67 3 Regions Visited 5 Branch Regions 3 Pre-discovered Areas 1 | . . . 1 . . Known Exits Taken 1 | . . 1 . . . Unknown Exits Taken 4 | 1 1 . 1 1 . Scrap Searched . | . . . . . . Spaces Dug . | . . . . . . Terrain Destroyed 70 | . 49 21 . . . Melee . | . . . . . . Projectile . | . . . . . . AOE 70 | . 49 21 . . . Terrain Rammed . | . . . . . . Walls Destroyed . | . . . . . . Machines Disabled . | . . . . . . Actions | -11 -10 -9 -9 -9 -8 --------- Run | Scr Mat Mat Min Exi Min Total 1247 | 51 207 532 83 359 15 Wait 133 | . 23 104 . 6 . Move 1024 | 44 151 391 81 342 15 Hop . | . . . . . . Pick Up 11 | 1 6 1 1 2 . Fast Attach 9 | 6 1 1 1 . . Attach 3 | . . 3 . . . Detach . | . . . . . . Swap 8 | . 2 4 . 2 . Drop 6 | . . 2 . 4 . Fire 53 | . 24 26 . 3 . Melee . | . . . . . . Ram . | . . . . . . Kick . | . . . . . . Crush . | . . . . . . Escape Stasis . | . . . . . . Rewire . | . . . . . . Trap . | . . . . . . Miscellaneous . | . . . . . . Route ------- -11/Scrapyard -10/Materials -9/Materials -9/Mines -9/Exiles (discovered 2 exits: [*Min x2]) -8/Mines History --------- Turn | Location | Event 14 | -11/Scrapyard | Discovered new exit (range 16) 61 | -11/Scrapyard | Entered Materials 277 | -10/Materials | Discovered new exit (range 12) 304 | -10/Materials | Build established: Mutant 341 | -10/Materials | Entered another Materials area 341 | -9/Materials | Evolved 2 slots: Propulsion x1, Utility x1 527 | -9/Materials | Identified exit to Mines 862 | -9/Materials | Lost 3 parts (1n2w) 998 | -9/Materials | Entered Mines 1004 | -9/Mines | Build established: Scavenger-Mutant 1017 | -9/Mines | Learned location of Storage (-8) 1042 | -9/Mines | Met a Derelict bent on vengeance 1093 | -9/Mines | Deemed a non-threat by the Exiles lab entrance 1093 | -9/Mines | Discovered new exit (range 5) 1098 | -9/Mines | Entered Exiles 1114 | -9/Exiles | Discovered new exit (range 17) 1125 | -9/Exiles | Met 8R-AWN 1145 | -9/Exiles | Met EX-HEX 1180 | -9/Exiles | Met EX-BIN 1202 | -9/Exiles | Aligned with FarCom system 1203 | -9/Exiles | Given EX-Vault access code 1269 | -9/Exiles | Opened EX-Vault 1288 | -9/Exiles | Found Prototype Special Weapon 1293 | -9/Exiles | Identified Field Lobotomy Kit 1316 | -9/Exiles | Warned to stay clear of 0b10 Research branches 1322 | -9/Exiles | Exiles lab attacked by MAIN.C 1428 | -9/Exiles | Core integrity fell below 50% 1460 | -9/Exiles | Lost 7 parts (1p3n1u2w) 1473 | -9/Exiles | Discovered new exit (range 10) 1478 | -9/Exiles | Left Exiles lab with Field Lobotomy Kit 1478 | -9/Exiles | Entered Mines 1483 | -8/Mines | Core integrity fell below 20% 1486 | -8/Mines | Destroyed by G-47 Trooper with Particle Gun Last Messages --------------- 01433_ HV Slug penetrates G-34 Mercenary. 01433_ G-34 Mercenary suffers critical hit (Destroy). 01435_ D-53 Grenadier destroyed. 01436_ HV Slug penetrates G-34 Mercenary. 01436_ G-34 Mercenary suffers critical hit (Destroy). 01436_ HV Slug penetrates G-34 Mercenary. 01436_ G-34 Mercenary suffers critical hit (Destroy). 01440_ HV Slug penetrates G-34 Mercenary. 01440_ G-34 Mercenary suffers critical hit (Destroy). 01463_ Dropped Grenade Launcher. 01463_ Acquired Med. Storage Unit. 01473_ EXIT=FOUND LOCATION=UNKNOWN GOAL=ESCAPE 01478_ Receiving FarCom transmissions... 01479_ DK-RAY: "That was close. Too bad in all the rush we got split up from the others." 01479_ B-36 Bruiser sneak attacks. 01479_ DK-RAY suffers critical hit (Smash). 01479_ DK-RAY destroyed. Map ----- +----------------------------------------------------+ | ????????????????????????????????????????????? | | ????????????????????????????????????????????? | | ????????????????????????????????????????????? | | ????????????????????????????????????????????? | | ????????????????????????????????????????????? | | ????????????????????????????????????????????? | | ????????????????????????????????????????????? | | ????????????????????????????????????????????? | | ????????????????????????????????????????????? | | ????????????????????????????????????????????? | | ????????????????????????????????????????????? | | ????????????????????????????????????????????? | | ????????????????????????????????????????????? | | ????????????????????????????????????????????? | | ????????????????????????????????????????????? | | ????????????????????????????????????????????? | | ????????????????????????????????????????????? | | ????????????????????????????????????????????? | | ????????????????????????????????????????????? | | ????????????????????????????????????????????? | | ????????????????????????????????????????????? | | ????????????????????????????????????????????? | | ????????????????????????????????????????????? | | ??????????????????????????########??????????? | | ???????????????## #########g #??????????? | | ????????????# @ % #??????????? | | ???????????????############ gb #??????????? | | ??????????????????????????# #??????????? | | ??????????????????????????# #??????????? | | ??????????????????????????########??????????? | | ????????????????????????????????????????????? | | ????????????????????????????????????????????? | | | | | | | | | | | | | | | | | | | | | | | | | | | | | | | | | | | | | +----------------------------------------------------+ Best States ------------- Heat Dissipation 28 Energy Generation 10 Energy Capacity 250 Matter Stores 300 Matter Capacity 300 Sight Range 20 Terrain Scan Density 10 Evasion (%) 55 Item Schematics ----------------- Hacking Suite | -9/Materials | Scanalyzed Robot Schematics ------------------ None Fabricated ------------ Nothing Alien Tech Used ----------------- None Achievements -------------- None Challenges ------------ None Game ------ Seed MissileFissionKatana Manual? 0 Play Time 00:18:39 Cumulative 25.8 hours Start 2022.09.27 @ 02:44:40 End 2022.09.27 @ 03:03:34 Sessions 1 Manual Loads 0 Difficulty Rogue Special Mode None Game No. 25 Rogue 25 Adventurer 0 Explorer 0 Win Type - Total 0 Types 0/0/0/0/0/0/0/0/0 Lore% 20 Gallery% 25 Achievement% 21 Wizard Run 0 Options --------- ASCII 1 Keyboard 1 Movement Numpad Keybinds 0 Fullscreen 1 Font 18/SmallcapsGlow Map View 76x50 Tactical HUD 1 Map Filters NONE Filters NONE Steam 1 RUN: 938df32b-ef19-45e3-9589-c70cd12ff8e3